[Event "December 19 Early 2023"]
[Site "https://www.chess.com"]
[Date "2023.12.19"]
[Round "6"]
[White "Tokhirjonova, Gulrukhbegim"]
[Black "Cansun, Can Alp"]
[Result "1-0"]
[Board "94"]
[TimeControl "180+1"]
[WhiteFideId "14203626"]
[BlackFideId "6390188"]
[WhiteElo "2265"]
[BlackElo "2031"]
[WhiteTeam "USA"]
[BlackTeam "TUR"]
[WhiteClock "0:01:15"]
[BlackClock "0:00:07"]

1. Nf3 {[%clk 0:02:58]}  c5 {[%clk 0:02:59]} 2. g3 {[%clk 0:02:58]}  g6 {[%clk 0:02:59]} 3. Bg2 {[%clk 0:02:57]}  Bg7 {[%clk 0:02:59]} 4. O-O {[%clk 0:02:57]}  Nc6 {[%clk 0:02:59]} 5. e4 {[%clk 0:02:57]}  e6 {[%clk 0:02:58]} 6. Nc3 {[%clk 0:02:54]}  Nge7 {[%clk 0:02:55]} 7. d3 {[%clk 0:02:51]}  O-O {[%clk 0:02:55]} 8. Be3 {[%clk 0:02:51]}  Nd4 {[%clk 0:02:53]} 9. Ne2 {[%clk 0:02:42]}  Nec6 {[%clk 0:02:40]} 10. c3 {[%clk 0:02:40]}  Nxe2+ {[%clk 0:02:33]} 11. Qxe2 {[%clk 0:02:39]}  d6 {[%clk 0:02:32]} 12. Rad1 {[%clk 0:02:39]}  Rb8 {[%clk 0:02:32]} 13. d4 {[%clk 0:02:38]}  cxd4 {[%clk 0:02:31]} 14. cxd4 {[%clk 0:02:38]}  d5 {[%clk 0:02:31]} 15. e5 {[%clk 0:02:34]}  b6 {[%clk 0:02:23]} 16. h4 {[%clk 0:02:27]}  Nb4 {[%clk 0:02:08]} 17. Qd2 {[%clk 0:02:26]}  a5 {[%clk 0:02:04]} 18. a3 {[%clk 0:02:14]}  Nc6 {[%clk 0:01:59]} 19. h5 {[%clk 0:02:06]}  Ba6 {[%clk 0:01:57]} 20. Rfe1 {[%clk 0:02:00]}  b5 {[%clk 0:01:54]} 21. Rc1 {[%clk 0:01:57]}  Qd7 {[%clk 0:01:52]} 22. Bh6 {[%clk 0:01:56]}  b4 {[%clk 0:01:45]} 23. Bxg7 {[%clk 0:01:54]}  Kxg7 {[%clk 0:01:45]} 24. Qg5 {[%clk 0:01:54]}  f6 {[%clk 0:00:56]} 25. exf6+ {[%clk 0:01:52]}  Rxf6 {[%clk 0:00:56]} 26. h6+ {[%clk 0:01:52]}  Kf7 {[%clk 0:00:54]} 27. Rxc6 {[%clk 0:01:51]}  Rf5 {[%clk 0:00:50]} 28. Qc1 {[%clk 0:01:48]}  Rc8 {[%clk 0:00:38]} 29. Rxc8 {[%clk 0:01:48]}  Qxc8 {[%clk 0:00:38]} 30. Ng5+ {[%clk 0:01:44]}  Kg8 {[%clk 0:00:24]} 31. Nxe6 {[%clk 0:01:42]}  Qxc1 {[%clk 0:00:21]} 32. Rxc1 {[%clk 0:01:43]}  Rf6 {[%clk 0:00:21]} 33. Nf4 {[%clk 0:01:40]}  g5 {[%clk 0:00:17]} 34. Bxd5+ {[%clk 0:01:38]}  Kf8 {[%clk 0:00:17]} 35. Ne6+ {[%clk 0:01:37]}  Ke7 {[%clk 0:00:17]} 36. Nxg5 {[%clk 0:01:33]}  Rxh6 {[%clk 0:00:17]} 37. Rc7+ {[%clk 0:01:30]}  Kd8 {[%clk 0:00:16]} 38. Ra7 {[%clk 0:01:25]}  bxa3 {[%clk 0:00:12]} 39. bxa3 {[%clk 0:01:24]}  Ke8 {[%clk 0:00:08]} 40. Bf7+ {[%clk 0:01:14]}  Kd8 {[%clk 0:00:07]} 41. Ne6+ {[%clk 0:01:14]}  Kc8 {[%clk 0:00:06]} 42. Rxa6 {[%clk 0:01:14]}  Kd7 {[%clk 0:00:07]} 43. Nc5+ {[%clk 0:01:13]}  Ke7 {[%clk 0:00:07]} 44. Rxh6 {[%clk 0:01:14]}  Kxf7 {[%clk 0:00:07]} 45. Rxh7+ {[%clk 0:01:15]} 1-0

[Event "December 19 Early 2023"]
[Site "https://www.chess.com"]
[Date "2023.12.19"]
[Round "6"]
[White "Iskusnyh, Sergei"]
[Black "Kraus, Tomas"]
[Result "1-0"]
[Board "95"]
[TimeControl "180+1"]
[WhiteFideId "4120027"]
[BlackFideId "331708"]
[WhiteElo "2455"]
[BlackElo "2371"]
[WhiteTeam "RUS"]
[BlackTeam "CZE"]
[WhiteClock "0:01:18"]
[BlackClock "0:00:05"]

1. d4 {[%clk 0:03:00]}  Nf6 {[%clk 0:02:56]} 2. c4 {[%clk 0:03:00]}  g6 {[%clk 0:02:55]} 3. g3 {[%clk 0:02:58]}  Bg7 {[%clk 0:02:52]} 4. Bg2 {[%clk 0:02:58]}  O-O {[%clk 0:02:52]} 5. Nc3 {[%clk 0:02:58]}  d6 {[%clk 0:02:49]} 6. Nf3 {[%clk 0:02:58]}  c5 {[%clk 0:02:44]} 7. dxc5 {[%clk 0:02:53]}  dxc5 {[%clk 0:02:45]} 8. Be3 {[%clk 0:02:53]}  Na6 {[%clk 0:02:37]} 9. O-O {[%clk 0:02:49]}  Be6 {[%clk 0:02:31]} 10. b3 {[%clk 0:02:41]}  Qa5 {[%clk 0:01:43]} 11. Qc1 {[%clk 0:02:38]}  Ng4 {[%clk 0:01:40]} 12. Bd2 {[%clk 0:02:35]}  Qc7 {[%clk 0:01:33]} 13. h3 {[%clk 0:02:32]}  Ne5 {[%clk 0:01:27]} 14. Nb5 {[%clk 0:01:54]}  Qb6 {[%clk 0:01:21]} 15. Nxe5 {[%clk 0:01:52]}  Bxe5 {[%clk 0:01:21]} 16. Bc3 {[%clk 0:01:51]}  Bxc3 {[%clk 0:01:11]} 17. Nxc3 {[%clk 0:01:48]}  Rfd8 {[%clk 0:01:02]} 18. Qg5 {[%clk 0:01:41]}  Rd7 {[%clk 0:00:55]} 19. h4 {[%clk 0:01:30]}  Rad8 {[%clk 0:00:56]} 20. h5 {[%clk 0:01:29]}  Ra8 {[%clk 0:00:57]} 21. hxg6 {[%clk 0:01:22]}  Rad8 {[%clk 0:00:58]} 22. gxh7+ {[%clk 0:01:18]}  Kxh7 {[%clk 0:00:57]} 23. Be4+ {[%clk 0:01:18]}  f5 {[%clk 0:00:48]} 24. Kg2 {[%clk 0:01:17]}  fxe4 {[%clk 0:00:39]} 25. Rh1+ {[%clk 0:01:17]}  Bh3+ {[%clk 0:00:28]} 26. Rxh3+ {[%clk 0:01:18]}  Qh6 {[%clk 0:00:05]} 27. Rxh6# {[%clk 0:01:18]} 1-0

[Event "December 19 Early 2023"]
[Site "https://www.chess.com"]
[Date "2023.12.19"]
[Round "6"]
[White "Ambartsumova, Karina"]
[Black "Martin, Lewis"]
[Result "1/2-1/2"]
[Board "98"]
[TimeControl "180+1"]
[WhiteFideId "4166299"]
[BlackFideId "410551"]
[WhiteElo "2240"]
[BlackElo "2145"]
[WhiteTeam "RUS"]
[BlackTeam "ENG"]
[WhiteClock "0:00:09"]
[BlackClock "0:00:15"]

1. d4 {[%clk 0:03:00]}  d5 {[%clk 0:02:59]} 2. c4 {[%clk 0:03:00]}  c6 {[%clk 0:02:59]} 3. Nf3 {[%clk 0:03:00]}  Nf6 {[%clk 0:02:59]} 4. g3 {[%clk 0:03:01]}  e6 {[%clk 0:02:57]} 5. Bg2 {[%clk 0:03:01]}  Nbd7 {[%clk 0:02:56]} 6. Qd3 {[%clk 0:02:57]}  Bd6 {[%clk 0:02:54]} 7. b3 {[%clk 0:02:56]}  O-O {[%clk 0:02:51]} 8. Nc3 {[%clk 0:02:55]}  Qe7 {[%clk 0:02:50]} 9. O-O {[%clk 0:02:49]}  b6 {[%clk 0:02:47]} 10. e4 {[%clk 0:02:42]}  dxe4 {[%clk 0:02:39]} 11. Nxe4 {[%clk 0:02:43]}  Nxe4 {[%clk 0:02:36]} 12. Qxe4 {[%clk 0:02:44]}  Bb7 {[%clk 0:02:35]} 13. Bb2 {[%clk 0:02:25]}  f5 {[%clk 0:02:18]} 14. Qe2 {[%clk 0:02:16]}  c5 {[%clk 0:02:12]} 15. Rfe1 {[%clk 0:02:07]}  Rae8 {[%clk 0:02:11]} 16. Rad1 {[%clk 0:01:45]}  cxd4 {[%clk 0:01:52]} 17. Nxd4 {[%clk 0:01:40]}  Bxg2 {[%clk 0:01:52]} 18. Kxg2 {[%clk 0:01:41]}  Bb4 {[%clk 0:01:39]} 19. Qxe6+ {[%clk 0:01:34]}  Qxe6 {[%clk 0:01:37]} 20. Rxe6 {[%clk 0:01:35]}  Nc5 {[%clk 0:01:10]} 21. Rxe8 {[%clk 0:01:32]}  Rxe8 {[%clk 0:01:11]} 22. Nxf5 {[%clk 0:01:33]}  Re2 {[%clk 0:01:08]} 23. Bxg7 {[%clk 0:01:18]}  Ne4 {[%clk 0:01:02]} 24. Rd7 {[%clk 0:00:55]}  Rxf2+ {[%clk 0:00:59]} 25. Kh3 {[%clk 0:00:50]}  Rxf5 {[%clk 0:01:00]} 26. Bh6 {[%clk 0:00:42]}  Rh5+ {[%clk 0:00:44]} 27. Kg2 {[%clk 0:00:34]}  Rxh6 {[%clk 0:00:43]} 28. Rxa7 {[%clk 0:00:35]}  Rf6 {[%clk 0:00:39]} 29. a3 {[%clk 0:00:23]}  Bc5 {[%clk 0:00:37]} 30. b4 {[%clk 0:00:22]}  Be3 {[%clk 0:00:37]} 31. Re7 {[%clk 0:00:22]}  Rf2+ {[%clk 0:00:33]} 32. Kh3 {[%clk 0:00:23]}  Ng5+ {[%clk 0:00:32]} 33. Kg4 {[%clk 0:00:23]}  Bd2 {[%clk 0:00:29]} 34. h4 {[%clk 0:00:20]}  Nf7 {[%clk 0:00:26]} 35. c5 {[%clk 0:00:17]}  bxc5 {[%clk 0:00:25]} 36. bxc5 {[%clk 0:00:18]}  Kg7 {[%clk 0:00:23]} 37. c6 {[%clk 0:00:18]}  Ba5 {[%clk 0:00:22]} 38. Ra7 {[%clk 0:00:13]}  Bb6 {[%clk 0:00:18]} 39. Rb7 {[%clk 0:00:13]}  Ba5 {[%clk 0:00:18]} 40. Ra7 {[%clk 0:00:11]}  Be1 {[%clk 0:00:16]} 41. Re7 {[%clk 0:00:09]}  Ba5 {[%clk 0:00:15]} 42. Ra7 {[%clk 0:00:09]} 1/2-1/2

[Event "December 19 Early 2023"]
[Site "https://www.chess.com"]
[Date "2023.12.19"]
[Round "6"]
[White "Cervantes Landeiro, Thalia"]
[Black "Jumabayev, Rinat"]
[Result "0-1"]
[Board "102"]
[TimeControl "180+1"]
[WhiteFideId "3520498"]
[BlackFideId "13702661"]
[WhiteElo "2189"]
[BlackElo "2561"]
[WhiteTeam "USA"]
[BlackTeam "KAZ"]
[WhiteClock "0:00:01"]
[BlackClock "0:01:06"]

1. d4 {[%clk 0:03:00]}  Nf6 {[%clk 0:02:57]} 2. c4 {[%clk 0:03:00]}  e6 {[%clk 0:02:54]} 3. Nf3 {[%clk 0:03:00]}  Bb4+ {[%clk 0:02:54]} 4. Nbd2 {[%clk 0:03:00]}  O-O {[%clk 0:02:51]} 5. a3 {[%clk 0:03:00]}  Be7 {[%clk 0:02:52]} 6. e4 {[%clk 0:03:00]}  d6 {[%clk 0:02:52]} 7. Be2 {[%clk 0:03:00]}  Nfd7 {[%clk 0:02:49]} 8. b4 {[%clk 0:02:57]}  e5 {[%clk 0:02:43]} 9. d5 {[%clk 0:02:51]}  a5 {[%clk 0:02:42]} 10. Bb2 {[%clk 0:02:47]}  c6 {[%clk 0:02:42]} 11. O-O {[%clk 0:02:44]}  cxd5 {[%clk 0:02:36]} 12. cxd5 {[%clk 0:02:41]}  Nb6 {[%clk 0:02:33]} 13. bxa5 {[%clk 0:02:13]}  Rxa5 {[%clk 0:02:29]} 14. Bc3 {[%clk 0:02:12]}  Ra8 {[%clk 0:02:29]} 15. a4 {[%clk 0:02:10]}  Na6 {[%clk 0:02:23]} 16. a5 {[%clk 0:02:06]}  Nd7 {[%clk 0:02:24]} 17. Nb3 {[%clk 0:01:45]}  Ndc5 {[%clk 0:02:22]} 18. Nfd2 {[%clk 0:01:42]}  Bg5 {[%clk 0:02:18]} 19. Nxc5 {[%clk 0:01:31]}  Nxc5 {[%clk 0:02:19]} 20. Bb4 {[%clk 0:01:32]}  Bxd2 {[%clk 0:02:18]} 21. Bxc5 {[%clk 0:00:56]}  Rxa5 {[%clk 0:01:54]} 22. Qxd2 {[%clk 0:00:46]}  Rxc5 {[%clk 0:01:53]} 23. Rfb1 {[%clk 0:00:45]}  Qc7 {[%clk 0:01:49]} 24. h3 {[%clk 0:00:40]}  f5 {[%clk 0:01:49]} 25. Bd3 {[%clk 0:00:36]}  f4 {[%clk 0:01:36]} 26. f3 {[%clk 0:00:35]}  Bd7 {[%clk 0:01:33]} 27. Ra7 {[%clk 0:00:32]}  Rb8 {[%clk 0:01:28]} 28. Qb2 {[%clk 0:00:28]}  Bc8 {[%clk 0:01:17]} 29. Qb6 {[%clk 0:00:24]}  Kf7 {[%clk 0:01:17]} 30. Kh2 {[%clk 0:00:20]}  Qxb6 {[%clk 0:01:13]} 31. Rxb6 {[%clk 0:00:19]}  Ke7 {[%clk 0:01:13]} 32. Ba6 {[%clk 0:00:17]}  Rc7 {[%clk 0:01:14]} 33. h4 {[%clk 0:00:14]}  g6 {[%clk 0:01:13]} 34. Bb5 {[%clk 0:00:13]}  h6 {[%clk 0:01:13]} 35. Bc6 {[%clk 0:00:09]}  g5 {[%clk 0:01:12]} 36. hxg5 {[%clk 0:00:09]}  hxg5 {[%clk 0:01:13]} 37. Bb5 {[%clk 0:00:09]}  g4 {[%clk 0:01:12]} 38. fxg4 {[%clk 0:00:05]}  Bxg4 {[%clk 0:01:13]} 39. Bc6 {[%clk 0:00:04]}  Rh8+ {[%clk 0:01:07]} 40. Kg1 {[%clk 0:00:03]}  Bc8 {[%clk 0:01:08]} 41. Bxb7 {[%clk 0:00:02]}  Rh7 {[%clk 0:01:07]} 42. Bxc8 {[%clk 0:00:01]}  Rxa7 {[%clk 0:01:06]} 43. Be6 {[%clk 0:00:02]}  Rg7 {[%clk 0:01:05]} 44. Kf1 {[%clk 0:00:02]}  Ra1+ {[%clk 0:01:05]} 45. Kf2 {[%clk 0:00:03]}  Ra2+ {[%clk 0:01:05]} 46. Ke1 {[%clk 0:00:03]}  Rgxg2 {[%clk 0:01:05]} 47. Rb7+ {[%clk 0:00:03]}  Kf6 {[%clk 0:01:06]} 48. Rf7+ {[%clk 0:00:01]}  Kg6 {[%clk 0:01:06]} 0-1

[Event "December 19 Early 2023"]
[Site "https://www.chess.com"]
[Date "2023.12.19"]
[Round "6"]
[White "Yuan, Qingyu"]
[Black "Kurmangaliyeva, Liya"]
[Result "0-1"]
[Board "103"]
[TimeControl "180+1"]
[WhiteFideId "8609772"]
[BlackFideId "13725831"]
[WhiteElo "2359"]
[BlackElo "2077"]
[WhiteTeam "CHN"]
[BlackTeam "KAZ"]
[WhiteClock "0:00:00"]
[BlackClock "0:00:06"]

1. Nf3 {[%clk 0:03:00]}  d5 {[%clk 0:02:57]} 2. e3 {[%clk 0:03:01]}  c5 {[%clk 0:02:53]} 3. d4 {[%clk 0:02:54]}  Nc6 {[%clk 0:02:49]} 4. dxc5 {[%clk 0:02:37]}  e6 {[%clk 0:02:47]} 5. c4 {[%clk 0:02:37]}  dxc4 {[%clk 0:02:41]} 6. Qxd8+ {[%clk 0:02:36]}  Nxd8 {[%clk 0:02:40]} 7. Bxc4 {[%clk 0:02:35]}  Bxc5 {[%clk 0:02:40]} 8. a3 {[%clk 0:02:35]}  Nf6 {[%clk 0:02:36]} 9. b4 {[%clk 0:02:35]}  Bd6 {[%clk 0:02:32]} 10. Bb2 {[%clk 0:02:35]}  Ke7 {[%clk 0:02:31]} 11. Nbd2 {[%clk 0:02:32]}  Nc6 {[%clk 0:02:30]} 12. Rc1 {[%clk 0:02:28]}  Bd7 {[%clk 0:02:30]} 13. O-O {[%clk 0:02:25]}  Rhd8 {[%clk 0:02:30]} 14. Rfd1 {[%clk 0:02:23]}  Rac8 {[%clk 0:02:26]} 15. h3 {[%clk 0:02:21]}  Be8 {[%clk 0:02:18]} 16. Bb3 {[%clk 0:02:21]}  a6 {[%clk 0:02:07]} 17. Nc4 {[%clk 0:02:17]}  Bc7 {[%clk 0:02:06]} 18. Nd4 {[%clk 0:02:07]}  g6 {[%clk 0:01:25]} 19. b5 {[%clk 0:01:43]}  Nxd4 {[%clk 0:01:15]} 20. Bxd4 {[%clk 0:01:43]}  Bxb5 {[%clk 0:01:08]} 21. Nb6 {[%clk 0:01:12]}  Bxb6 {[%clk 0:01:06]} 22. Bxb6 {[%clk 0:01:04]}  Rxd1+ {[%clk 0:01:05]} 23. Rxd1 {[%clk 0:01:04]}  Ne4 {[%clk 0:00:56]} 24. f3 {[%clk 0:00:54]}  Nd6 {[%clk 0:00:53]} 25. Ba5 {[%clk 0:00:51]}  Bc4 {[%clk 0:00:38]} 26. Bc2 {[%clk 0:00:37]}  Bd5 {[%clk 0:00:35]} 27. Bb1 {[%clk 0:00:31]}  Bb3 {[%clk 0:00:33]} 28. Re1 {[%clk 0:00:29]}  Nb5 {[%clk 0:00:30]} 29. Bd3 {[%clk 0:00:25]}  Nc3 {[%clk 0:00:25]} 30. Kh2 {[%clk 0:00:19]}  Nd5 {[%clk 0:00:22]} 31. Bd2 {[%clk 0:00:15]}  Rd8 {[%clk 0:00:20]} 32. e4 {[%clk 0:00:13]}  Nc7 {[%clk 0:00:20]} 33. Bb4+ {[%clk 0:00:13]}  Ke8 {[%clk 0:00:21]} 34. Be2 {[%clk 0:00:12]}  b6 {[%clk 0:00:20]} 35. Rc1 {[%clk 0:00:11]}  Kd7 {[%clk 0:00:20]} 36. Bc3 {[%clk 0:00:10]}  a5 {[%clk 0:00:20]} 37. Be5 {[%clk 0:00:08]}  Rc8 {[%clk 0:00:20]} 38. Rc3 {[%clk 0:00:08]}  a4 {[%clk 0:00:19]} 39. Rd3+ {[%clk 0:00:08]}  Ke8 {[%clk 0:00:19]} 40. Rc3 {[%clk 0:00:08]}  Kd7 {[%clk 0:00:19]} 41. Rd3+ {[%clk 0:00:08]}  Ke8 {[%clk 0:00:20]} 42. h4 {[%clk 0:00:08]}  Na6 {[%clk 0:00:19]} 43. Rd6 {[%clk 0:00:05]}  Nc5 {[%clk 0:00:18]} 44. Rxb6 {[%clk 0:00:05]}  Nd7 {[%clk 0:00:17]} 45. Bb5 {[%clk 0:00:05]}  Kd8 {[%clk 0:00:12]} 46. Rd6 {[%clk 0:00:04]}  Rc7 {[%clk 0:00:12]} 47. Rd4 {[%clk 0:00:03]}  Rb7 {[%clk 0:00:12]} 48. Bc6 {[%clk 0:00:03]}  Ra7 {[%clk 0:00:11]} 49. Bf6+ {[%clk 0:00:03]}  Kc8 {[%clk 0:00:11]} 50. Bg5 {[%clk 0:00:03]}  Ne5 {[%clk 0:00:11]} 51. Rd8+ {[%clk 0:00:03]}  Kc7 {[%clk 0:00:11]} 52. Be8 {[%clk 0:00:04]}  h6 {[%clk 0:00:08]} 53. Bf6 {[%clk 0:00:04]}  Ra5 {[%clk 0:00:06]} 54. Rd4 {[%clk 0:00:03]}  Nc4 {[%clk 0:00:02]} 55. Bxf7 {[%clk 0:00:03]}  Nxa3 {[%clk 0:00:03]} 56. Bxg6 {[%clk 0:00:03]}  Nc2 {[%clk 0:00:03]} 57. Rd2 {[%clk 0:00:02]}  a3 {[%clk 0:00:04]} 58. e5 {[%clk 0:00:03]}  a2 {[%clk 0:00:04]} 59. Bxc2 {[%clk 0:00:03]}  a1=Q {[%clk 0:00:04]} 60. Bxb3 {[%clk 0:00:03]}  Qf1 {[%clk 0:00:03]} 61. Bd8+ {[%clk 0:00:03]}  Kb7 {[%clk 0:00:03]} 62. Bxa5 {[%clk 0:00:04]}  Qb5 {[%clk 0:00:02]} 63. Bxe6 {[%clk 0:00:03]}  Qxa5 {[%clk 0:00:03]} 64. f4 {[%clk 0:00:03]}  Qxd2 {[%clk 0:00:03]} 65. Kg3 {[%clk 0:00:04]}  Qe3+ {[%clk 0:00:03]} 66. Kg4 {[%clk 0:00:04]}  h5+ {[%clk 0:00:03]} 67. Kf5 {[%clk 0:00:04]}  Qg3 {[%clk 0:00:04]} 68. Bd5+ {[%clk 0:00:02]}  Kc7 {[%clk 0:00:04]} 69. Bf3 {[%clk 0:00:02]}  Qxh4 {[%clk 0:00:04]} 70. e6 {[%clk 0:00:01]}  Kd8 {[%clk 0:00:04]} 71. Ke5 {[%clk 0:00:02]}  Ke7 {[%clk 0:00:05]} 72. f5 {[%clk 0:00:02]}  Qf6+ {[%clk 0:00:05]} 73. Ke4 {[%clk 0:00:03]}  Qg5 {[%clk 0:00:06]} 74. Ke5 {[%clk 0:00:03]}  Qe3+ {[%clk 0:00:06]} 75. Kd5 {[%clk 0:00:03]}  Kf6 {[%clk 0:00:06]} 76. Kd6 {[%clk 0:00:04]}  Qe5+ {[%clk 0:00:06]} 77. Kd7 {[%clk 0:00:04]}  Qxf5 {[%clk 0:00:06]} 78. Bxh5 {[%clk 0:00:01]}  Qxh5 {[%clk 0:00:06]} 79. e7 {[%clk 0:00:00]}  Qf7 {[%clk 0:00:06]} 0-1

[Event "December 19 Early 2023"]
[Site "https://www.chess.com"]
[Date "2023.12.19"]
[Round "6"]
[White "Karas, Marek"]
[Black "Hua, Lefong"]
[Result "1-0"]
[Board "104"]
[TimeControl "180+1"]
[WhiteFideId "14928558"]
[BlackFideId "2602253"]
[WhiteElo "2218"]
[BlackElo "2689"]
[WhiteTeam "CZE"]
[BlackTeam "CAN"]
[WhiteClock "0:00:21"]
[BlackClock "0:01:02"]

1. d4 {[%clk 0:03:00]}  Nf6 {[%clk 0:03:00]} 2. Nf3 {[%clk 0:03:00]}  g6 {[%clk 0:03:00]} 3. Bg5 {[%clk 0:02:53]}  Bg7 {[%clk 0:03:00]} 4. Nbd2 {[%clk 0:02:53]}  O-O {[%clk 0:03:00]} 5. e4 {[%clk 0:02:53]}  d6 {[%clk 0:03:01]} 6. Bd3 {[%clk 0:02:52]}  c5 {[%clk 0:03:01]} 7. dxc5 {[%clk 0:02:52]}  dxc5 {[%clk 0:03:01]} 8. O-O {[%clk 0:02:52]}  h6 {[%clk 0:03:01]} 9. Bh4 {[%clk 0:02:52]}  Nc6 {[%clk 0:02:56]} 10. Re1 {[%clk 0:02:46]}  g5 {[%clk 0:02:49]} 11. Bg3 {[%clk 0:02:46]}  Nh5 {[%clk 0:02:49]} 12. Rb1 {[%clk 0:02:37]}  Nxg3 {[%clk 0:02:48]} 13. hxg3 {[%clk 0:02:37]}  Be6 {[%clk 0:02:48]} 14. a3 {[%clk 0:02:30]}  Nd4 {[%clk 0:02:42]} 15. Nxd4 {[%clk 0:02:29]}  cxd4 {[%clk 0:02:41]} 16. e5 {[%clk 0:02:18]}  Bd5 {[%clk 0:02:27]} 17. Qg4 {[%clk 0:01:51]}  Qb6 {[%clk 0:02:18]} 18. f4 {[%clk 0:01:39]}  gxf4 {[%clk 0:02:03]} 19. gxf4 {[%clk 0:01:36]}  Rfc8 {[%clk 0:02:03]} 20. Ne4 {[%clk 0:01:10]}  Kf8 {[%clk 0:01:58]} 21. Ng3 {[%clk 0:01:03]}  Rxc2 {[%clk 0:01:42]} 22. Bxc2 {[%clk 0:00:44]}  d3+ {[%clk 0:01:42]} 23. Kh2 {[%clk 0:00:45]}  dxc2 {[%clk 0:01:43]} 24. Rbc1 {[%clk 0:00:45]}  Qxb2 {[%clk 0:01:34]} 25. Nf5 {[%clk 0:00:41]}  Bh8 {[%clk 0:01:26]} 26. Qh4 {[%clk 0:00:38]}  Qxa3 {[%clk 0:01:11]} 27. Qxh6+ {[%clk 0:00:32]}  Kg8 {[%clk 0:01:07]} 28. Re3 {[%clk 0:00:24]}  Qxe3 {[%clk 0:01:06]} 29. Nxe3 {[%clk 0:00:24]}  Bg7 {[%clk 0:01:05]} 30. Qg5 {[%clk 0:00:21]}  Be4 {[%clk 0:01:06]} 31. Nf5 {[%clk 0:00:20]}  Bxf5 {[%clk 0:01:03]} 32. Qxf5 {[%clk 0:00:21]}  e6 {[%clk 0:01:02]} 33. Qxc2 {[%clk 0:00:21]} 1-0

[Event "December 19 Early 2023"]
[Site "https://www.chess.com"]
[Date "2023.12.19"]
[Round "6"]
[White "Caceres Benitez, Arturo Eduardo"]
[Black "Timerkhanov, Alexander"]
[Result "0-1"]
[Board "105"]
[TimeControl "180+1"]
[WhiteFideId "3710769"]
[BlackFideId "24177938"]
[WhiteElo "2045"]
[BlackElo "2278"]
[WhiteTeam "PAR"]
[BlackTeam "RUS"]
[WhiteClock "0:00:04"]
[BlackClock "0:01:03"]

1. Nf3 {[%clk 0:02:56]}  d5 {[%clk 0:02:59]} 2. c4 {[%clk 0:02:55]}  c6 {[%clk 0:02:59]} 3. b3 {[%clk 0:02:53]}  Nf6 {[%clk 0:02:59]} 4. Bb2 {[%clk 0:02:51]}  g6 {[%clk 0:03:00]} 5. d3 {[%clk 0:02:51]}  Bg7 {[%clk 0:03:00]} 6. g3 {[%clk 0:02:52]}  O-O {[%clk 0:03:00]} 7. Bg2 {[%clk 0:02:53]}  a5 {[%clk 0:02:57]} 8. a3 {[%clk 0:02:53]}  Re8 {[%clk 0:02:55]} 9. Nbd2 {[%clk 0:02:53]}  Nbd7 {[%clk 0:02:55]} 10. Ne5 {[%clk 0:02:50]}  Nxe5 {[%clk 0:02:52]} 11. Bxe5 {[%clk 0:02:51]}  e6 {[%clk 0:02:51]} 12. O-O {[%clk 0:02:51]}  b6 {[%clk 0:02:51]} 13. Qc2 {[%clk 0:02:47]}  Bb7 {[%clk 0:02:51]} 14. b4 {[%clk 0:02:44]}  Nd7 {[%clk 0:02:45]} 15. Bxg7 {[%clk 0:02:40]}  Kxg7 {[%clk 0:02:46]} 16. e4 {[%clk 0:02:26]}  d4 {[%clk 0:02:44]} 17. f4 {[%clk 0:02:25]}  c5 {[%clk 0:02:41]} 18. b5 {[%clk 0:01:58]}  e5 {[%clk 0:02:20]} 19. f5 {[%clk 0:01:57]}  Nf6 {[%clk 0:02:02]} 20. h3 {[%clk 0:01:50]}  Nh5 {[%clk 0:02:03]} 21. Kh2 {[%clk 0:01:46]}  Qg5 {[%clk 0:02:01]} 22. g4 {[%clk 0:01:31]}  Nf4 {[%clk 0:02:00]} 23. Nf3 {[%clk 0:01:14]}  Qd8 {[%clk 0:02:00]} 24. Qd2 {[%clk 0:01:13]}  g5 {[%clk 0:01:57]} 25. Rh1 {[%clk 0:01:08]}  h5 {[%clk 0:01:53]} 26. Kg3 {[%clk 0:01:06]}  Rh8 {[%clk 0:01:52]} 27. Kf2 {[%clk 0:01:02]}  hxg4 {[%clk 0:01:43]} 28. hxg4 {[%clk 0:01:03]}  Qf6 {[%clk 0:01:36]} 29. Rxh8 {[%clk 0:00:53]}  Rxh8 {[%clk 0:01:33]} 30. Rh1 {[%clk 0:00:53]}  Rxh1 {[%clk 0:01:32]} 31. Bxh1 {[%clk 0:00:53]}  Qh6 {[%clk 0:01:32]} 32. Bg2 {[%clk 0:00:45]}  f6 {[%clk 0:01:32]} 33. Qd1 {[%clk 0:00:32]}  Qh8 {[%clk 0:01:31]} 34. Kg3 {[%clk 0:00:28]}  Qa8 {[%clk 0:01:27]} 35. Ng1 {[%clk 0:00:23]}  a4 {[%clk 0:01:24]} 36. Nh3 {[%clk 0:00:18]}  Qa5 {[%clk 0:01:22]} 37. Nxf4 {[%clk 0:00:17]}  gxf4+ {[%clk 0:01:20]} 38. Kf3 {[%clk 0:00:12]}  Kf7 {[%clk 0:01:18]} 39. Qh1 {[%clk 0:00:08]}  Qd2 {[%clk 0:01:13]} 40. Qh7+ {[%clk 0:00:08]}  Kf8 {[%clk 0:01:13]} 41. Qh8+ {[%clk 0:00:08]}  Kf7 {[%clk 0:01:12]} 42. Qh7+ {[%clk 0:00:05]}  Kf8 {[%clk 0:01:09]} 43. Qh6+ {[%clk 0:00:05]}  Kg8 {[%clk 0:01:09]} 44. Qg6+ {[%clk 0:00:05]}  Kf8 {[%clk 0:01:09]} 45. Qxf6+ {[%clk 0:00:06]}  Kg8 {[%clk 0:01:09]} 46. Qd8+ {[%clk 0:00:05]}  Kh7 {[%clk 0:01:09]} 47. Qe7+ {[%clk 0:00:05]}  Kg8 {[%clk 0:01:09]} 48. Qe6+ {[%clk 0:00:04]}  Kh7 {[%clk 0:01:09]} 49. Qf7+ {[%clk 0:00:03]}  Kh8 {[%clk 0:01:09]} 50. Qf6+ {[%clk 0:00:03]}  Kh7 {[%clk 0:01:09]} 51. Qf7+ {[%clk 0:00:01]}  Kh8 {[%clk 0:01:07]} 52. Qe8+ {[%clk 0:00:02]}  Kh7 {[%clk 0:01:07]} 53. Qd7+ {[%clk 0:00:03]}  Kh8 {[%clk 0:01:07]} 54. Qd8+ {[%clk 0:00:03]}  Kg7 {[%clk 0:01:04]} 55. Qh4 {[%clk 0:00:04]}  Qe3# {[%clk 0:01:03]} 0-1